[Event "Live Chess"]
[Site "Chess.com"]
[Date "2023.05.21"]
[Round "-"]
[White "YrrriKharkiv"]
[Black "Leonid_Starozhilov"]
[Result "0-1"]
[WhiteElo "2078"]
[BlackElo "2661"]
[TimeControl "300"]
[EndTime "1:12:18 PDT"]
[Termination "Leonid_Starozhilov won by checkmate"]

1. d4 {[%clk 0:04:54.3]} 1... Nf6 {[%clk 0:04:58.5]} 2. Bg5 {[%clk 0:04:53.3]}
2... c5 {[%clk 0:04:57]} 3. Bxf6 {[%clk 0:04:52.5]} 3... gxf6 {[%clk 0:04:56.3]}
4. Nf3 {[%clk 0:04:45.3]} 4... d5 {[%clk 0:04:54.7]} 5. c3 {[%clk 0:04:43.4]}
5... e6 {[%clk 0:04:51.4]} 6. e3 {[%clk 0:04:41.2]} 6... Qb6 {[%clk 0:04:49.2]}
7. Qb3 {[%clk 0:04:37.8]} 7... Nc6 {[%clk 0:04:48.6]} 8. Qxb6 {[%clk 0:04:33.7]}
8... axb6 {[%clk 0:04:46.4]} 9. Nbd2 {[%clk 0:04:29.1]} 9... f5 {[%clk
0:04:42.1]} 10. Bb5 {[%clk 0:04:24.3]} 10... Bd7 {[%clk 0:04:39.1]} 11. O-O
{[%clk 0:04:18.5]} 11... Bd6 {[%clk 0:04:22.3]} 12. a3 {[%clk 0:04:02.3]} 12...
c4 {[%clk 0:04:19.7]} 13. Bxc4 {[%clk 0:03:48.2]} 13... dxc4 {[%clk 0:04:17]}
14. Nxc4 {[%clk 0:03:47.8]} 14... Bc7 {[%clk 0:04:16.3]} 15. Rfd1 {[%clk
0:03:42.5]} 15... b5 {[%clk 0:04:12]} 16. Ncd2 {[%clk 0:03:38.2]} 16... Na5
{[%clk 0:04:06.7]} 17. b4 {[%clk 0:03:29.8]} 17... Nc4 {[%clk 0:04:00.4]} 18.
Nxc4 {[%clk 0:03:28.6]} 18... bxc4 {[%clk 0:04:00.3]} 19. d5 {[%clk 0:03:25.5]}
19... Ke7 {[%clk 0:03:58.7]} 20. dxe6 {[%clk 0:03:03.9]} 20... fxe6 {[%clk
0:03:58.6]} 21. Nd4 {[%clk 0:02:51.7]} 21... Ba4 {[%clk 0:03:54.9]} 22. Re1
{[%clk 0:02:48.3]} 22... Bb6 {[%clk 0:03:49.4]} 23. f4 {[%clk 0:02:40.6]} 23...
Bxd4 {[%clk 0:03:42.9]} 24. exd4 {[%clk 0:02:39.1]} 24... Bc6 {[%clk 0:03:40.2]}
25. Kf2 {[%clk 0:02:31.4]} 25... Ra4 {[%clk 0:03:36]} 26. Re5 {[%clk 0:02:26]}
26... Rha8 {[%clk 0:03:34.3]} 27. Rae1 {[%clk 0:02:21.9]} 27... Be4 {[%clk
0:03:33.6]} 28. d5 {[%clk 0:02:13.9]} 28... Rxa3 {[%clk 0:03:24]} 29. Rxe6+
{[%clk 0:02:12.5]} 29... Kf7 {[%clk 0:03:23.2]} 30. Ke3 {[%clk 0:01:36.6]} 30...
Rxc3+ {[%clk 0:02:57.2]} 31. Kd4 {[%clk 0:01:34]} 31... Rd3+ {[%clk 0:02:54.2]}
32. Ke5 {[%clk 0:01:31.5]} 32... Rxd5# {[%clk 0:02:51.8]} 0-1

[Event "Live Chess"]
[Site "Chess.com"]
[Date "2023.05.21"]
[Round "-"]
[White "wadsy27"]
[Black "HoarseyHorsey"]
[Result "1-0"]
[WhiteElo "2573"]
[BlackElo "1467"]
[TimeControl "300"]
[EndTime "1:12:18 PDT"]
[Termination "wadsy27 won by resignation"]

1. c4 {[%clk 0:04:58.1]} 1... Nf6 {[%clk 0:04:58.6]} 2. g3 {[%clk 0:04:57]} 2...
d5 {[%clk 0:04:55.6]} 3. Bg2 {[%clk 0:04:56.9]} 3... e6 {[%clk 0:04:54.7]} 4.
Nf3 {[%clk 0:04:55.3]} 4... c6 {[%clk 0:04:53.8]} 5. O-O {[%clk 0:04:51.1]} 5...
Nbd7 {[%clk 0:04:52.4]} 6. b3 {[%clk 0:04:46.5]} 6... Be7 {[%clk 0:04:50.2]} 7.
Bb2 {[%clk 0:04:42]} 7... O-O {[%clk 0:04:48.9]} 8. d4 {[%clk 0:04:41.2]} 8...
c5 {[%clk 0:04:43.7]} 9. cxd5 {[%clk 0:04:33.8]} 9... exd5 {[%clk 0:04:42]} 10.
dxc5 {[%clk 0:04:31.4]} 10... Bxc5 {[%clk 0:04:40.2]} 11. Nc3 {[%clk 0:04:30.5]}
11... Nb6 {[%clk 0:04:37]} 12. Rc1 {[%clk 0:04:28.5]} 12... Be6 {[%clk
0:04:21.6]} 13. Nb5 {[%clk 0:04:27.4]} 13... Be7 {[%clk 0:04:14.7]} 14. a4
{[%clk 0:04:18.7]} 14... a6 {[%clk 0:04:08.6]} 15. Nbd4 {[%clk 0:04:08.9]} 15...
Rc8 {[%clk 0:04:01.7]} 16. Qd3 {[%clk 0:04:06.5]} 16... Bc5 {[%clk 0:03:55.5]}
17. Rc2 {[%clk 0:03:34.7]} 17... Qe7 {[%clk 0:03:46.7]} 18. Rfc1 {[%clk
0:03:31.7]} 18... Rc7 {[%clk 0:03:41.6]} 19. Nxe6 {[%clk 0:02:58.6]} 19... fxe6
{[%clk 0:03:41.5]} 20. Be5 {[%clk 0:02:57.3]} 20... Rcc8 {[%clk 0:03:32.9]} 21.
e3 {[%clk 0:02:55.2]} 21... Nbd7 {[%clk 0:03:28.1]} 22. Bd4 {[%clk 0:02:52.4]}
22... Qd6 {[%clk 0:03:08.6]} 23. b4 {[%clk 0:02:49.3]} 23... Bxd4 {[%clk
0:02:59.8]} 24. Rxc8 {[%clk 0:02:47.2]} 24... Rxc8 {[%clk 0:02:58.3]} 25. Rxc8+
{[%clk 0:02:45.3]} 25... Kf7 {[%clk 0:02:57.8]} 26. exd4 {[%clk 0:02:39.2]} 1-0

[Event "Live Chess"]
[Site "Chess.com"]
[Date "2023.05.21"]
[Round "-"]
[White "CheckThis4"]
[Black "Salpingidis"]
[Result "1-0"]
[WhiteElo "2488"]
[BlackElo "2219"]
[TimeControl "300"]
[EndTime "1:12:27 PDT"]
[Termination "CheckThis4 won by resignation"]

1. d4 {[%clk 0:04:58.9]} 1... e6 {[%clk 0:04:57.5]} 2. e4 {[%clk 0:04:57.4]}
2... d5 {[%clk 0:04:56.7]} 3. e5 {[%clk 0:04:55.7]} 3... c5 {[%clk 0:04:55.5]}
4. c3 {[%clk 0:04:55.2]} 4... Nc6 {[%clk 0:04:54.8]} 5. Nf3 {[%clk 0:04:54.8]}
5... Qb6 {[%clk 0:04:54.3]} 6. Bd3 {[%clk 0:04:52.8]} 6... cxd4 {[%clk
0:04:53.5]} 7. cxd4 {[%clk 0:04:49]} 7... Bd7 {[%clk 0:04:52.9]} 8. O-O {[%clk
0:04:46.2]} 8... Nxd4 {[%clk 0:04:52]} 9. Nbd2 {[%clk 0:04:44.7]} 9... Nc6
{[%clk 0:04:46.6]} 10. Nb3 {[%clk 0:04:33]} 10... Nb4 {[%clk 0:04:21.6]} 11. Be3
{[%clk 0:04:30.1]} 11... Qd8 {[%clk 0:04:16.1]} 12. Be2 {[%clk 0:04:26.9]} 12...
Rc8 {[%clk 0:04:10]} 13. Nfd4 {[%clk 0:04:24]} 13... Ne7 {[%clk 0:04:03.7]} 14.
f4 {[%clk 0:04:14.1]} 14... Nec6 {[%clk 0:03:43.9]} 15. f5 {[%clk 0:03:57.9]}
15... Nxd4 {[%clk 0:03:38.8]} 16. Nxd4 {[%clk 0:03:55.8]} 16... Bc5 {[%clk
0:03:17.1]} 17. Kh1 {[%clk 0:03:38.4]} 17... Bxd4 {[%clk 0:03:11.8]} 18. Bxd4
{[%clk 0:03:25.3]} 18... Nc2 {[%clk 0:03:10.7]} 19. Rc1 {[%clk 0:03:14.9]} 19...
Nxd4 {[%clk 0:03:08.5]} 20. Qxd4 {[%clk 0:03:11.5]} 20... exf5 {[%clk
0:02:51.9]} 21. e6 {[%clk 0:03:07.8]} 21... fxe6 {[%clk 0:02:00]} 22. Qxg7
{[%clk 0:03:01.6]} 1-0

[Event "Live Chess"]
[Site "Chess.com"]
[Date "2023.05.21"]
[Round "-"]
[White "JohanKjeldahl"]
[Black "Hacker_2009"]
[Result "0-1"]
[WhiteElo "1902"]
[BlackElo "1918"]
[TimeControl "300"]
[EndTime "1:12:33 PDT"]
[Termination "Hacker_2009 won by resignation"]

1. c4 {[%clk 0:04:54.6]} 1... Nf6 {[%clk 0:04:58.5]} 2. Nc3 {[%clk 0:04:53.2]}
2... e6 {[%clk 0:04:57.2]} 3. e4 {[%clk 0:04:51.6]} 3... c5 {[%clk 0:04:56.8]}
4. e5 {[%clk 0:04:50.4]} 4... Ng8 {[%clk 0:04:55.5]} 5. d4 {[%clk 0:04:48.9]}
5... cxd4 {[%clk 0:04:54.6]} 6. Qxd4 {[%clk 0:04:47.9]} 6... Nc6 {[%clk
0:04:54.1]} 7. Qe4 {[%clk 0:04:46.6]} 7... Qc7 {[%clk 0:04:52.6]} 8. Nf3 {[%clk
0:04:44.8]} 8... d6 {[%clk 0:04:50.5]} 9. Bf4 {[%clk 0:04:37.9]} 9... dxe5
{[%clk 0:04:49.1]} 10. Nxe5 {[%clk 0:04:35.7]} 10... Nf6 {[%clk 0:04:43.9]} 11.
Qe2 {[%clk 0:04:22.3]} 11... Qb6 {[%clk 0:04:40.6]} 12. O-O-O {[%clk 0:04:17.5]}
12... Be7 {[%clk 0:04:37.8]} 13. g4 {[%clk 0:04:02.1]} 13... O-O {[%clk
0:04:35.4]} 14. g5 {[%clk 0:04:00.7]} 14... Ne8 {[%clk 0:04:33.8]} 15. h4 {[%clk
0:03:56]} 15... Nxe5 {[%clk 0:04:26]} 16. Bxe5 {[%clk 0:03:53.4]} 16... Qc6
{[%clk 0:04:24.5]} 17. Bh3 {[%clk 0:03:45.6]} 17... b6 {[%clk 0:04:21.7]} 18. f4
{[%clk 0:03:41.7]} 18... Bb7 {[%clk 0:04:18.6]} 19. Rhg1 {[%clk 0:03:38.6]}
19... Nd6 {[%clk 0:04:14.4]} 20. Bg2 {[%clk 0:03:35.8]} 20... Qc7 {[%clk
0:04:09.1]} 21. Bxd6 {[%clk 0:03:31.6]} 21... Bxd6 {[%clk 0:04:07.5]} 22. Bxb7
{[%clk 0:03:29.5]} 22... Bxf4+ {[%clk 0:04:06.6]} 23. Kb1 {[%clk 0:03:23.9]}
23... Qxb7 {[%clk 0:04:05.9]} 24. Ne4 {[%clk 0:03:20.4]} 24... Rfd8 {[%clk
0:04:02.1]} 25. Rxd8+ {[%clk 0:03:15.6]} 25... Rxd8 {[%clk 0:03:59.4]} 26. h5
{[%clk 0:03:03.2]} 26... Qd7 {[%clk 0:03:53.4]} 27. g6 {[%clk 0:02:59.5]} 27...
fxg6 {[%clk 0:03:51]} 28. hxg6 {[%clk 0:02:56.5]} 28... Qd3+ {[%clk 0:03:49]}
29. Qxd3 {[%clk 0:02:54.1]} 29... Rxd3 {[%clk 0:03:48.9]} 30. gxh7+ {[%clk
0:02:52]} 30... Kxh7 {[%clk 0:03:46.2]} 31. Rf1 {[%clk 0:02:41.3]} 31... e5
{[%clk 0:03:41.2]} 32. c5 {[%clk 0:02:39.3]} 32... bxc5 {[%clk 0:03:36.2]} 33.
Nxc5 {[%clk 0:02:37.8]} 33... Rd6 {[%clk 0:03:27.1]} 34. Ne4 {[%clk 0:02:34.1]}
34... Rb6 {[%clk 0:03:16.1]} 35. Kc2 {[%clk 0:02:31]} 35... g5 {[%clk
0:03:15.2]} 36. b3 {[%clk 0:02:25]} 36... Kg6 {[%clk 0:03:14.5]} 37. Kd3 {[%clk
0:02:22.6]} 37... Kf5 {[%clk 0:03:10.9]} 38. Nc5 {[%clk 0:02:19.8]} 38... Rd6+
{[%clk 0:03:07.5]} 39. Kc4 {[%clk 0:02:18.3]} 39... g4 {[%clk 0:03:04.8]} 40. a4
{[%clk 0:02:08.3]} 40... g3 {[%clk 0:03:03.4]} 41. Nd3 {[%clk 0:02:06]} 41...
Kg4 {[%clk 0:02:57.1]} 42. b4 {[%clk 0:01:58.5]} 42... g2 {[%clk 0:02:55.6]} 43.
Rg1 {[%clk 0:01:56.2]} 43... Kg3 {[%clk 0:02:55.1]} 44. Ne1 {[%clk 0:01:52.7]}
44... Rd2 {[%clk 0:02:51]} 45. Kc3 {[%clk 0:01:48.8]} 45... Kh2 {[%clk
0:02:48.7]} 0-1

[Event "Live Chess"]
[Site "Chess.com"]
[Date "2023.05.21"]
[Round "-"]
[White "Rusty_Bridges"]
[Black "chessfiction"]
[Result "0-1"]
[WhiteElo "1528"]
[BlackElo "2347"]
[TimeControl "300"]
[EndTime "1:12:34 PDT"]
[Termination "chessfiction won by resignation"]

1. e4 {[%clk 0:04:58]} 1... e5 {[%clk 0:04:58.4]} 2. f4 {[%clk 0:04:54.4]} 2...
d5 {[%clk 0:04:58.3]} 3. exd5 {[%clk 0:04:53]} 3... exf4 {[%clk 0:04:56.8]} 4.
Nf3 {[%clk 0:04:52]} 4... g5 {[%clk 0:04:55.9]} 5. Nc3 {[%clk 0:04:47.5]} 5...
g4 {[%clk 0:04:55]} 6. Ne5 {[%clk 0:04:45.5]} 6... Qh4+ {[%clk 0:04:52.4]} 7.
Ke2 {[%clk 0:04:42.1]} 7... Bd6 {[%clk 0:04:48.2]} 8. Nxf7 {[%clk 0:04:37.6]}
8... Kxf7 {[%clk 0:04:46.5]} 9. Ne4 {[%clk 0:04:36.7]} 9... Nf6 {[%clk
0:04:44.4]} 10. d3 {[%clk 0:04:34.1]} 10... Re8 {[%clk 0:04:42.3]} 11. Kd2
{[%clk 0:04:32.2]} 11... Rxe4 {[%clk 0:04:39.5]} 12. dxe4 {[%clk 0:04:30]} 12...
Nxe4+ {[%clk 0:04:39.4]} 13. Kd3 {[%clk 0:04:27.3]} 13... Nf2+ {[%clk
0:04:38.2]} 0-1

[Event "Live Chess"]
[Site "Chess.com"]
[Date "2023.05.21"]
[Round "-"]
[White "ChessClubLive"]
[Black "JoshMcK"]
[Result "1-0"]
[WhiteElo "1786"]
[BlackElo "1535"]
[TimeControl "300"]
[EndTime "1:13:22 PDT"]
[Termination "ChessClubLive won by resignation"]

1. e4 {[%clk 0:04:55.5]} 1... c6 {[%clk 0:04:58.5]} 2. f4 {[%clk 0:04:53.4]}
2... d5 {[%clk 0:04:52.6]} 3. exd5 {[%clk 0:04:52.3]} 3... cxd5 {[%clk
0:04:51.7]} 4. Nf3 {[%clk 0:04:51.4]} 4... Bg4 {[%clk 0:04:49.9]} 5. Be2 {[%clk
0:04:50.3]} 5... e6 {[%clk 0:04:47.9]} 6. O-O {[%clk 0:04:49.3]} 6... Nc6 {[%clk
0:04:44.8]} 7. Ne5 {[%clk 0:04:45.8]} 7... Bxe2 {[%clk 0:04:41.6]} 8. Qxe2
{[%clk 0:04:44.6]} 8... Nxe5 {[%clk 0:04:38.7]} 9. fxe5 {[%clk 0:04:43.8]} 9...
Bc5+ {[%clk 0:04:36]} 10. Kh1 {[%clk 0:04:39.4]} 10... Ne7 {[%clk 0:04:33.4]}
11. c3 {[%clk 0:04:32.5]} 11... O-O {[%clk 0:04:31]} 12. d4 {[%clk 0:04:30.9]}
12... Bb6 {[%clk 0:04:29.8]} 13. Rf3 {[%clk 0:04:25.5]} 13... Nf5 {[%clk
0:04:19]} 14. Bd2 {[%clk 0:04:10.6]} 14... Bxd4 {[%clk 0:03:58]} 15. Rxf5 {[%clk
0:04:02.1]} 15... Bxc3 {[%clk 0:03:49.8]} 16. Nxc3 {[%clk 0:03:43.8]} 16... exf5
{[%clk 0:03:48.2]} 17. Rf1 {[%clk 0:03:32.2]} 17... g6 {[%clk 0:03:45.2]} 18.
Bh6 {[%clk 0:03:28.2]} 18... Re8 {[%clk 0:03:43.2]} 19. g4 {[%clk 0:03:07.7]}
19... d4 {[%clk 0:03:33.1]} 20. Nb5 {[%clk 0:02:58]} 20... Qd5+ {[%clk
0:03:17.2]} 21. Qf3 {[%clk 0:02:37.1]} 21... Qxb5 {[%clk 0:03:10.7]} 22. gxf5
{[%clk 0:02:36.4]} 22... Rxe5 {[%clk 0:02:47.8]} 23. fxg6 {[%clk 0:02:32.6]}
23... Qd5 {[%clk 0:02:41.5]} 24. Qxd5 {[%clk 0:02:22.1]} 24... Rxd5 {[%clk
0:02:37.7]} 25. gxf7+ {[%clk 0:02:21.3]} 25... Kh8 {[%clk 0:02:36.6]} 26. f8=Q+
{[%clk 0:02:19.4]} 1-0

[Event "Live Chess"]
[Site "Chess.com"]
[Date "2023.05.21"]
[Round "-"]
[White "Ocelot32"]
[Black "Ian-Morley"]
[Result "0-1"]
[WhiteElo "1365"]
[BlackElo "1067"]
[TimeControl "300"]
[EndTime "1:13:26 PDT"]
[Termination "Ian-Morley won by checkmate"]

1. e4 {[%clk 0:04:57.5]} 1... e5 {[%clk 0:04:58.9]} 2. Nf3 {[%clk 0:04:56.3]}
2... Nc6 {[%clk 0:04:57.7]} 3. Bb5 {[%clk 0:04:53.2]} 3... a6 {[%clk 0:04:55.8]}
4. Ba4 {[%clk 0:04:51.6]} 4... b5 {[%clk 0:04:54.8]} 5. Bb3 {[%clk 0:04:50.4]}
5... Qe7 {[%clk 0:04:51]} 6. c3 {[%clk 0:04:45.7]} 6... a5 {[%clk 0:04:49.1]} 7.
O-O {[%clk 0:04:43.6]} 7... a4 {[%clk 0:04:47.3]} 8. Bc2 {[%clk 0:04:42.7]} 8...
Bb7 {[%clk 0:04:46.7]} 9. d4 {[%clk 0:04:38]} 9... exd4 {[%clk 0:04:44.1]} 10.
cxd4 {[%clk 0:04:36.8]} 10... f6 {[%clk 0:04:41.4]} 11. Re1 {[%clk 0:04:34.9]}
11... O-O-O {[%clk 0:04:40.5]} 12. e5 {[%clk 0:04:33.3]} 12... fxe5 {[%clk
0:04:38.4]} 13. dxe5 {[%clk 0:04:25.6]} 13... d5 {[%clk 0:04:33.1]} 14. Nc3
{[%clk 0:04:22.5]} 14... d4 {[%clk 0:04:30.9]} 15. Nxb5 {[%clk 0:04:21.1]} 15...
Nb4 {[%clk 0:04:25.3]} 16. Bxa4 {[%clk 0:04:18.8]} 16... Nd3 {[%clk 0:04:23]}
17. Qxd3 {[%clk 0:04:15.4]} 17... Qb4 {[%clk 0:04:21.6]} 18. b3 {[%clk
0:04:03.4]} 18... Ba6 {[%clk 0:04:07.9]} 19. Bd2 {[%clk 0:03:50.8]} 19... Bxb5
{[%clk 0:04:05.1]} 20. Qf5+ {[%clk 0:03:46.8]} 20... Bd7 {[%clk 0:04:00.8]} 21.
Qxd7+ {[%clk 0:03:45.2]} 21... Rxd7 {[%clk 0:04:00]} 22. Bxb4 {[%clk 0:03:44.4]}
22... Bxb4 {[%clk 0:03:56.8]} 23. e6 {[%clk 0:03:42.5]} 23... Bxe1 {[%clk
0:03:55.4]} 24. Bxd7+ {[%clk 0:03:37.6]} 24... Kd8 {[%clk 0:03:53.7]} 25. Rxe1
{[%clk 0:03:36.4]} 25... Ne7 {[%clk 0:03:52.6]} 26. Ne5 {[%clk 0:03:30.3]} 26...
Rf8 {[%clk 0:03:50.6]} 27. Nc6+ {[%clk 0:03:27]} 27... Nxc6 {[%clk 0:03:48.9]}
28. Bxc6 {[%clk 0:03:25.7]} 28... Ke7 {[%clk 0:03:47.1]} 29. a4 {[%clk 0:03:23]}
29... d3 {[%clk 0:03:45.2]} 30. Bd7 {[%clk 0:03:18.6]} 30... Rb8 {[%clk
0:03:42.4]} 31. b4 {[%clk 0:03:10.8]} 31... Rxb4 {[%clk 0:03:40.3]} 32. Rd1
{[%clk 0:03:10.3]} 32... d2 {[%clk 0:03:36.4]} 33. g3 {[%clk 0:03:08.2]} 33...
Rb2 {[%clk 0:03:35.1]} 34. a5 {[%clk 0:03:06.4]} 34... Rc2 {[%clk 0:03:34.4]}
35. Kg2 {[%clk 0:03:04.3]} 35... Ra2 {[%clk 0:03:31.9]} 36. a6 {[%clk
0:03:01.3]} 36... c5 {[%clk 0:03:26.6]} 37. a7 {[%clk 0:02:59.2]} 37... Rxa7
{[%clk 0:03:25.4]} 38. Rxd2 {[%clk 0:02:58.2]} 38... c4 {[%clk 0:03:24.7]} 39.
Rc2 {[%clk 0:02:57.3]} 39... Rc7 {[%clk 0:03:22.5]} 40. h4 {[%clk 0:02:50.5]}
40... h6 {[%clk 0:03:20.7]} 41. g4 {[%clk 0:02:49]} 41... g5 {[%clk 0:03:19.8]}
42. hxg5 {[%clk 0:02:47.5]} 42... hxg5 {[%clk 0:03:19.3]} 43. Kg3 {[%clk
0:02:46.9]} 43... c3 {[%clk 0:03:16.9]} 44. f4 {[%clk 0:02:45.3]} 44... gxf4+
{[%clk 0:03:15.7]} 45. Kxf4 {[%clk 0:02:44.2]} 45... Rc4+ {[%clk 0:03:15.1]} 46.
Kf5 {[%clk 0:02:41.2]} 46... Rc5+ {[%clk 0:03:13.8]} 47. Kg6 {[%clk 0:02:39.3]}
47... Rd5 {[%clk 0:03:08.5]} 48. g5 {[%clk 0:02:37.1]} 48... Rd3 {[%clk
0:03:06.8]} 49. Kg7 {[%clk 0:02:35]} 49... Rd2 {[%clk 0:02:59.5]} 50. Rxc3
{[%clk 0:02:32.9]} 50... Rh2 {[%clk 0:02:55.9]} 51. Rg3 {[%clk 0:02:30.8]} 51...
Ra2 {[%clk 0:02:51.9]} 52. g6 {[%clk 0:02:29.8]} 52... Rf2 {[%clk 0:02:48.6]}
53. Kh6 {[%clk 0:02:23.8]} 53... Kf6 {[%clk 0:02:45.8]} 54. g7 {[%clk
0:02:14.6]} 54... Rh2+ {[%clk 0:02:44.1]} 55. Rh3 {[%clk 0:02:08.8]} 55... Rxh3#
{[%clk 0:02:43.1]} 0-1

[Event "Live Chess"]
[Site "Chess.com"]
[Date "2023.05.21"]
[Round "-"]
[White "LGC4YOU"]
[Black "Denz14"]
[Result "1-0"]
[WhiteElo "1189"]
[BlackElo "1031"]
[TimeControl "300"]
[EndTime "1:13:26 PDT"]
[Termination "LGC4YOU won by resignation"]

1. d4 {[%clk 0:04:59.1]} 1... Nf6 {[%clk 0:04:50.1]} 2. Nf3 {[%clk 0:04:58.5]}
2... g6 {[%clk 0:04:44.8]} 3. Bf4 {[%clk 0:04:57.8]} 3... Bg7 {[%clk 0:04:44.7]}
4. e3 {[%clk 0:04:56.7]} 4... d6 {[%clk 0:04:44.6]} 5. c4 {[%clk 0:04:55.8]}
5... O-O {[%clk 0:04:44.5]} 6. Nc3 {[%clk 0:04:54.8]} 6... Nc6 {[%clk
0:04:42.6]} 7. Bd3 {[%clk 0:04:53.3]} 7... Nb4 {[%clk 0:04:41.1]} 8. O-O {[%clk
0:04:44.2]} 8... Nxd3 {[%clk 0:04:39.7]} 9. Qxd3 {[%clk 0:04:43.3]} 9... e5
{[%clk 0:04:35.7]} 10. Bg5 {[%clk 0:04:41.1]} 10... Qe8 {[%clk 0:04:25.9]} 11.
dxe5 {[%clk 0:04:36]} 11... dxe5 {[%clk 0:04:24.3]} 12. e4 {[%clk 0:04:32.1]}
12... Bg4 {[%clk 0:04:12.1]} 13. h3 {[%clk 0:04:24.7]} 13... Be6 {[%clk
0:04:03.1]} 14. b3 {[%clk 0:04:15.3]} 14... Rd8 {[%clk 0:03:53.4]} 15. Qe3
{[%clk 0:04:13.4]} 15... Bh6 {[%clk 0:03:36.3]} 16. Bxh6 {[%clk 0:04:11.6]} 1-0

[Event "Live Chess"]
[Site "Chess.com"]
[Date "2023.05.21"]
[Round "-"]
[White "OceanFloater"]
[Black "PaulHumphreys"]
[Result "1-0"]
[WhiteElo "1024"]
[BlackElo "1354"]
[TimeControl "300"]
[EndTime "1:13:50 PDT"]
[Termination "OceanFloater won by checkmate"]

1. e4 {[%clk 0:04:57.4]} 1... e6 {[%clk 0:04:59.9]} 2. Nf3 {[%clk 0:04:56.5]}
2... d5 {[%clk 0:04:59]} 3. exd5 {[%clk 0:04:55.7]} 3... exd5 {[%clk 0:04:58.1]}
4. d4 {[%clk 0:04:55.4]} 4... Bd6 {[%clk 0:04:54.5]} 5. Qe2+ {[%clk 0:04:54]}
5... Ne7 {[%clk 0:04:52.6]} 6. Nc3 {[%clk 0:04:51.1]} 6... c6 {[%clk 0:04:51.3]}
7. Bg5 {[%clk 0:04:48.5]} 7... f6 {[%clk 0:04:49.5]} 8. Bh4 {[%clk 0:04:47.4]}
8... Bg4 {[%clk 0:04:47.3]} 9. h3 {[%clk 0:04:44.9]} 9... Bh5 {[%clk 0:04:45.2]}
10. g4 {[%clk 0:04:32.4]} 10... Bg6 {[%clk 0:04:43.1]} 11. O-O-O {[%clk
0:04:26.6]} 11... Qa5 {[%clk 0:04:32.6]} 12. Kb1 {[%clk 0:04:22.3]} 12... Na6
{[%clk 0:04:15.2]} 13. Bg3 {[%clk 0:04:11.6]} 13... Bb4 {[%clk 0:04:05.7]} 14.
Rd3 {[%clk 0:04:01]} 14... Bxd3 {[%clk 0:03:53.7]} 15. Qxd3 {[%clk 0:03:59.7]}
15... Bxc3 {[%clk 0:03:50.6]} 16. Qxc3 {[%clk 0:03:58]} 16... Qxc3 {[%clk
0:03:49.4]} 17. bxc3 {[%clk 0:03:57.2]} 17... O-O-O {[%clk 0:03:36.4]} 18. h4
{[%clk 0:03:51.9]} 18... Rhe8 {[%clk 0:03:33.2]} 19. Bh3 {[%clk 0:03:48.6]}
19... Nc7 {[%clk 0:03:22.8]} 20. g5+ {[%clk 0:03:45.5]} 20... f5 {[%clk
0:03:22.1]} 21. Ne5 {[%clk 0:03:39.6]} 21... Ng6 {[%clk 0:03:18.5]} 22. Bxf5+
{[%clk 0:03:31.5]} 22... Kb8 {[%clk 0:03:12.3]} 23. Nf7 {[%clk 0:03:28.4]} 23...
Ne7 {[%clk 0:02:25.1]} 24. Bg4 {[%clk 0:03:16.3]} 24... Rc8 {[%clk 0:01:54.8]}
25. Nd6 {[%clk 0:03:08.4]} 25... Rcd8 {[%clk 0:01:49.9]} 26. Nxe8 {[%clk
0:03:04.7]} 26... Rxe8 {[%clk 0:01:48.8]} 27. Re1 {[%clk 0:03:01.7]} 27... Ng6
{[%clk 0:01:46.6]} 28. Rxe8# {[%clk 0:02:55.8]} 1-0

[Event "Live Chess"]
[Site "Chess.com"]
[Date "2023.05.21"]
[Round "-"]
[White "whitedjohn"]
[Black "MJMykh"]
[Result "1-0"]
[WhiteElo "1641"]
[BlackElo "1108"]
[TimeControl "300"]
[EndTime "1:14:02 PDT"]
[Termination "whitedjohn won by checkmate"]

1. e4 {[%clk 0:04:57.8]} 1... e5 {[%clk 0:04:58.7]} 2. Nf3 {[%clk 0:04:56.2]}
2... Nc6 {[%clk 0:04:58]} 3. Bb5 {[%clk 0:04:54.5]} 3... d6 {[%clk 0:04:55.8]}
4. d4 {[%clk 0:04:53.1]} 4... exd4 {[%clk 0:04:53.7]} 5. Qxd4 {[%clk 0:04:51.8]}
5... Bd7 {[%clk 0:04:51.7]} 6. Bxc6 {[%clk 0:04:50.7]} 6... Bxc6 {[%clk
0:04:50.8]} 7. Nc3 {[%clk 0:04:49.7]} 7... Nf6 {[%clk 0:04:50.3]} 8. Bg5 {[%clk
0:04:48.1]} 8... Be7 {[%clk 0:04:48.8]} 9. O-O-O {[%clk 0:04:47]} 9... h6 {[%clk
0:04:48]} 10. Bh4 {[%clk 0:04:43.9]} 10... O-O {[%clk 0:04:46.4]} 11. e5 {[%clk
0:04:42.6]} 11... dxe5 {[%clk 0:04:42.7]} 12. Qxe5 {[%clk 0:04:41.6]} 12... Qc8
{[%clk 0:04:35.9]} 13. Qxe7 {[%clk 0:04:38.4]} 13... Bxf3 {[%clk 0:04:32.5]} 14.
gxf3 {[%clk 0:04:35.9]} 14... Nh5 {[%clk 0:04:27.3]} 15. Qe5 {[%clk 0:04:23.2]}
15... g6 {[%clk 0:04:18.3]} 16. Rhg1 {[%clk 0:04:16.2]} 16... Kh7 {[%clk
0:04:15.4]} 17. Ne4 {[%clk 0:03:51.7]} 17... Re8 {[%clk 0:04:10.2]} 18. Nf6+
{[%clk 0:03:48]} 18... Nxf6 {[%clk 0:04:07.3]} 19. Qxf6 {[%clk 0:03:46.9]} 19...
Rf8 {[%clk 0:04:04.2]} 20. Bg3 {[%clk 0:03:38.5]} 20... c6 {[%clk 0:03:59.7]}
21. Be5 {[%clk 0:03:36.6]} 21... Rg8 {[%clk 0:03:39.6]} 22. Qxf7+ {[%clk
0:03:35.1]} 22... Rg7 {[%clk 0:03:38.4]} 23. Qxg7# {[%clk 0:03:33.9]} 1-0